bitfinex/quotes_SOLUSD_20240813
["timestamp","ask_amount","ask_price","bid_price","bid_amount"]
[1723564044204,0.8207651,146.65,146.64,45.25098]
[1723564048200,0.8207651,146.65,146.59,15.6912]
[1723564049695,0.8207651,146.65,146.6,0.25098]
[1723564050502,7.6396651,146.65,146.59,15.6912]
[1723564051001,7.6398651,146.65,146.59,15.6912]
[1723564051309,0.8207651,146.65,146.59,15.6912]
[1723564051677,0.8207651,146.65,146.6,45.25098]
[1723564055709,6.8197,146.64,146.6,45.25098]
[1723564055883,7.6398651,146.65,146.6,45.25098]
[1723564056201,0.8207651,146.65,146.6,45.25098]
[1723564056708,7.6398651,146.65,146.6,45.0]
[1723564057402,0.8207651,146.65,146.6,45.0]
[1723564057797,7.6396651,146.65,146.6,45.0]
[1723564058385,6.8199,146.63,146.6,45.0]
[1723564058892,0.8207651,146.65,146.6,45.0]
[1723564059115,7.6397651,146.65,146.6,45.0]
[1723564060702,15.8663,146.64,146.52,55.1861]
[1723564060907,39.11,146.61,146.52,16.0761]
[1723564061096,1.66063536,146.6,146.52,16.0761]
[1723564061589,40.77063536,146.59,146.51,6.4709]
[1723564061811,6.8241,146.54,146.48,16.0761]
[1723564061989,1.66063536,146.53,146.47,6.2028]
[1723564062185,40.77063536,146.53,146.44,16.5978]
[1723564062489,6.8251,146.52,146.44,16.5978]
[1723564062895,1.66063536,146.51,146.44,16.5978]
[1723564063388,6.8251,146.52,146.44,16.5978]
[1723564063785,8.48613536,146.51,146.44,16.5978]
[1723564064814,45.9348,146.53,146.44,16.5978]
[1723564065199,39.11,146.53,146.45,45.25098]
[1723564065512,6.8241,146.54,146.45,45.25098]
[1723564066118,15.996,146.58,146.45,84.36098]
[1723564066315,22.8185,146.58,146.45,84.36098]
[1723564066506,12.8891,146.59,146.47,39.11]
[1723564066818,6.8222,146.58,146.48,45.25098]
[1723564067113,6.3222,146.58,146.48,45.25098]
[1723564067292,6.8228,146.57,146.48,45.25098]
[1723564067497,18.22103536,146.56,146.44,16.5978]
[1723564067722,6.8253,146.52,146.44,16.5978]
[1723564068215,39.11,146.54,146.44,16.5978]
[1723564068417,6.8243,146.54,146.44,16.5978]
[1723564068989,6.8246,146.53,146.45,0.12549]
[1723564069189,6.8251,146.52,146.45,0.12549]
[1723564069387,6.8245,146.53,146.45,45.12549]
[1723564069924,6.8241,146.54,146.45,45.12549]
[1723564070227,23.3839,146.56,146.45,45.12549]
[1723564070394,6.8235,146.56,146.46,39.11]
[1723564070585,6.8235,146.56,146.47,45.12549]
[1723564070786,13.96083093,146.57,146.48,0.12549]
[1723564071017,6.8231,146.56,146.48,0.12549]
[1723564071600,6.8228,146.57,146.48,0.12549]
[1723564071925,52.31395986,146.59,146.48,0.12549]
[1723564072098,20.0,146.58,146.48,0.12549]
[1723564072501,6.8228,146.57,146.48,0.12549]
[1723564072806,1.66063536,146.57,146.48,0.12549]
[1723564073001,20.0,146.58,146.48,0.12549]
[1723564073222,6.8229,146.57,146.48,0.12549]
[1723564073915,26.8223,146.58,146.49,22.1054]
[1723564074115,13.95875986,146.59,146.5,45.25098]
[1723564074908,7.13665986,146.59,146.5,45.25098]
[1723564075106,15.2082,146.64,146.5,84.36098]
[1723564075311,13.95494448,146.62,146.51,35.9694]
[1723564075610,6.8205,146.62,146.52,45.25098]
[1723564075817,6.8208,146.61,146.52,45.25098]
[1723564076123,6.8212,146.6,146.52,45.25098]
[1723564076512,6.8217,146.59,146.52,45.25098]
[1723564076918,6.8213,146.6,146.52,45.25098]
[1723564077420,32.2569,146.64,146.52,45.25098]
[1723564077625,39.11,146.61,146.52,0.12549]
[1723564077800,21.66063536,146.6,146.52,0.12549]
[1723564078003,37.0535,146.6,146.52,0.12549]
[1723564078213,6.8223,146.58,146.52,0.12549]
[1723564078525,6.8224,146.58,146.52,0.12549]
[1723564079224,6.8218,146.59,146.52,45.25098]
[1723564079411,26.8213,146.6,146.52,45.25098]
[1723564079610,6.8213,146.6,146.52,45.25098]
[1723564080719,6.8225,146.58,146.52,45.25098]
[1723564080922,6.8235,146.56,146.51,15.9694]
[1723564081121,39.11,146.59,146.51,15.9694]
[1723564081309,6.8216,146.6,146.51,15.9694]
[1723564081626,6.8215,146.6,146.51,15.9694]
[1723564081930,39.11,146.61,146.51,15.9694]
[1723564082108,6.8218,146.59,146.51,15.9694]
[1723564082429,6.8218,146.59,146.52,45.25098]
[1723564082603,6.8222,146.58,146.52,45.25098]
[1723564082803,6.8228,146.57,146.52,45.0]
[1723564083417,1.66063536,146.56,146.51,15.9694]
[1723564083626,6.8248,146.53,146.49,6.1288]
[1723564083928,39.11,146.57,146.49,6.1288]
[1723564084221,39.11,146.59,146.49,6.1288]
[1723564084406,6.8235,146.56,146.49,6.1288]
[1723564084910,6.823,146.57,146.5,45.25098]
[1723564085112,6.8232,146.56,146.5,45.25098]
[1723564085316,8.48343536,146.57,146.5,45.25098]
[1723564085507,6.8228,146.57,146.5,45.25098]
[1723564085836,6.8231,146.56,146.5,45.25098]
[1723564086130,6.8242,146.54,146.49,6.1288]
[1723564087434,6.8242,146.54,146.5,45.25098]
[1723564087818,6.8232,146.56,146.5,45.25098]
[1723564089236,6.8228,146.57,146.5,45.25098]
[1723564089422,6.8223,146.58,146.5,45.25098]
[1723564089934,6.8227,146.57,146.5,45.25098]
[1723564090226,13.95894417,146.59,146.5,45.25098]
[1723564090426,6.8217,146.59,146.5,45.25098]
[1723564090635,6.8218,146.59,146.5,45.25098]
[1723564090863,6.8214,146.6,146.5,45.25098]
[1723564091028,6.8214,146.6,146.51,15.6861]
[1723564091333,6.8214,146.6,146.52,45.25098]
[1723564091808,6.8217,146.59,146.52,45.25098]
[1723564092006,6.8232,146.56,146.52,45.25098]
[1723564092225,6.8228,146.57,146.52,45.25098]
[1723564092935,6.8232,146.56,146.52,45.25098]
[1723564093326,39.11,146.59,146.51,15.6861]
[1723564093526,6.8234,146.56,146.51,15.6861]
[1723564093722,6.8244,146.54,146.51,15.6861]
[1723564093924,6.8253,146.52,146.49,6.1288]
[1723564094137,1.66063536,146.51,146.48,15.9626]
[1723564094343,6.8259,146.5,146.45,22.504]
[1723564094557,33.02063536,146.51,146.45,22.504]
[1723564094728,31.36,146.49,146.41,22.504]
[1723564094928,6.8282,146.45,146.41,22.504]
[1723564095150,6.8287,146.44,146.41,22.504]
[1723564095357,6.8278,146.46,146.41,22.504]
[1723564095652,31.36,146.47,146.41,22.504]
[1723564096027,6.8272,146.48,146.41,22.504]
[1723564096226,6.8265,146.49,146.41,22.504]
[1723564096949,6.827,146.48,146.41,22.504]
[1723564097154,8.48763536,146.48,146.41,22.504]
[1723564097364,6.8265,146.49,146.42,45.25098]
[1723564098034,8.48713536,146.49,146.42,45.25098]
[1723564098642,6.827,146.48,146.42,45.25098]
[1723564099141,45.6968,146.55,146.42,45.25098]
[1723564099459,6.825,146.52,146.43,20.0]
[1723564099636,6.825,146.52,146.44,45.25098]
[1723564100140,6.8245,146.53,146.44,45.25098]
[1723564100333,53.77440814,146.58,146.44,45.25098]
[1723564100767,6.8234,146.56,146.44,45.25098]
[1723564101060,6.8234,146.56,146.45,26.6585]
[1723564101255,1.66063536,146.55,146.46,45.25098]
[1723564101440,6.8256,146.51,146.46,45.25098]
[1723564101642,6.8253,146.52,146.46,45.25098]
[1723564101943,6.8246,146.53,146.46,45.25098]
[1723564103464,6.8251,146.52,146.46,45.25098]
[1723564103647,8.48573536,146.52,146.46,45.25098]
[1723564104261,6.8247,146.53,146.46,45.25098]
[1723564104561,6.8237,146.55,146.47,16.5833]
[1723564104747,6.8242,146.54,146.48,45.25098]
[1723564105763,6.8237,146.55,146.48,45.25098]
[1723564106141,6.8242,146.54,146.48,45.25098]
[1723564108464,6.8237,146.55,146.48,45.25098]
[1723564108663,7.13802002,146.56,146.48,45.25098]
[1723564109267,6.8244,146.54,146.48,45.25098]
[1723564109472,39.23,146.54,146.47,16.5833]
[1723564109662,1.66063536,146.53,146.47,16.5833]
[1723564109969,39.23,146.54,146.47,16.5833]
[1723564110648,39.23,146.58,146.48,0.12549]
[1723564110965,20.0,146.57,146.48,0.12549]
[1723564111148,6.8239,146.55,146.48,45.25098]
[1723564112153,6.8241,146.54,146.48,45.25098]
[1723564112846,6.8237,146.55,146.48,45.25098]
[1723564116270,37.0568,146.57,146.48,45.25098]
[1723564116562,6.8248,146.53,146.48,45.25098]
[1723564117142,39.23,146.56,146.48,0.25098]
[1723564117773,6.8243,146.54,146.48,0.25098]
[1723564118393,6.8243,146.54,146.48,45.25098]
[1723564118673,31.36,146.55,146.48,45.25098]
[1723564119282,6.8246,146.53,146.48,45.25098]
[1723564120076,6.8254,146.51,146.48,45.25098]
[1723564120248,6.8254,146.51,146.48,0.25098]
[1723564120557,1.66063536,146.5,146.45,6.6585]
[1723564120758,6.8272,146.48,146.45,6.6585]
[1723564121072,6.8267,146.49,146.45,6.6585]
[1723564121664,6.826,146.5,146.45,6.6585]
[1723564121970,31.36,146.53,146.45,6.6585]
[1723564122175,6.8255,146.51,146.45,6.6585]
[1723564122482,6.8254,146.51,146.46,45.25098]
[1723564124990,20.0,146.52,146.46,45.25098]
[1723564125169,6.8246,146.53,146.46,45.25098]
[1723564125569,31.36,146.53,146.46,45.25098]
[1723564125763,6.8259,146.5,146.46,45.25098]
[1723564125959,6.8257,146.51,146.46,45.25098]
[1723564126782,6.8251,146.52,146.46,45.25098]
[1723564127491,6.8255,146.51,146.46,45.25098]
[1723564127990,31.36,146.53,146.46,45.25098]
[1723564128165,6.8244,146.54,146.47,15.6586]
[1723564128366,6.8244,146.54,146.48,45.25098]
[1723564128558,6.8246,146.53,146.48,45.25098]
[1723564129682,6.8242,146.54,146.48,45.25098]
[1723564129890,38.1839,146.55,146.48,45.25098]
[1723564130266,6.8232,146.56,146.48,45.25098]
[1723564131688,6.8241,146.54,146.48,45.25098]
[1723564131886,31.36,146.55,146.48,45.25098]
[1723564132180,6.8254,146.51,146.47,15.6586]
[1723564132393,6.8264,146.49,146.47,15.6586]
[1723564132683,1.66063536,146.5,146.47,15.6586]
[1723564132859,31.36,146.51,146.47,15.6586]
[1723564133558,38.1855,146.51,146.47,15.6586]
[1723564133963,6.8255,146.51,146.48,45.0]
[1723564134986,38.1855,146.51,146.48,45.0]
[1723564135465,31.36,146.51,146.48,45.0]
[1723564135668,38.1855,146.51,146.48,45.0]
[1723564137291,31.36,146.53,146.48,45.0]
[1723564138096,38.1848,146.53,146.48,45.0]
[1723564138692,6.825,146.52,146.48,45.0]
[1723564140188,38.1847,146.53,146.48,45.0]
[1723564140370,31.36,146.53,146.48,45.0]
[1723564140574,31.36,146.51,146.48,45.0]
[1723564140878,8.48673536,146.5,146.48,45.0]
[1723564141064,31.36,146.51,146.48,45.0]
[1723564141265,6.8253,146.52,146.48,45.0]
[1723564141669,7.13866357,146.54,146.48,45.0]
[1723564141897,6.824,146.54,146.49,0.12549]
[1723564142289,6.824,146.54,146.49,0.25098]
[1723564143373,6.8234,146.56,146.49,0.25098]
[1723564143692,1.66063536,146.55,146.49,0.25098]
[1723564144200,6.8245,146.53,146.49,0.25098]
[1723564144384,1.66063536,146.52,146.47,15.6586]
[1723564144700,6.8259,146.5,146.47,15.6586]
[1723564144874,6.8268,146.48,146.47,15.6586]
[1723564145073,31.36,146.49,146.43,16.0679]
[1723564145391,38.1874,146.47,146.43,16.0679]
[1723564146001,1.66063536,146.46,146.43,16.0679]
[1723564146176,33.02063536,146.45,146.41,6.4404]
[1723564146498,34.03188807,146.51,146.39,15.772]
[1723564146499,38.1892,146.43,146.39,15.772]
[1723564146677,6.8305,146.41,146.35,22.2858]
[1723564146880,1.66063536,146.4,146.35,22.2858]
[1723564147087,8.49153536,146.4,146.35,22.2858]
[1723564147380,38.1902,146.41,146.35,22.2858]
[1723564147689,31.36,146.45,146.35,22.2858]
[1723564147898,6.8291,146.44,146.35,22.2858]
[1723564148093,20.0,146.43,146.35,22.2858]
[1723564148417,26.8292,146.43,146.36,45.12549]
[1723564148577,6.8296,146.42,146.36,45.12549]
[1723564148888,58.1893,146.43,146.36,45.12549]
[1723564149268,51.36,146.43,146.36,45.12549]
[1723564149466,31.36,146.41,146.35,22.2858]
[1723564149687,31.36,146.39,146.32,6.5897]
[1723564149884,31.36,146.37,146.32,6.5897]
[1723564150088,6.8326,146.36,146.32,6.5897]
[1723564151096,31.36,146.37,146.32,6.5897]
[1723564151271,6.8325,146.36,146.32,6.5897]
[1723564151776,38.192,146.37,146.32,6.5897]
[1723564152188,38.192,146.37,146.33,45.0]
[1723564152394,6.832,146.37,146.33,45.0]
[1723564152708,6.8301,146.41,146.34,0.12549]
[1723564152912,26.8306,146.4,146.34,0.25098]
[1723564153108,51.36,146.4,146.33,45.0]
[1723564153289,6.8329,146.35,146.33,45.0]
[1723564153785,6.8329,146.35,146.32,45.0]
[1723564153984,38.1925,146.36,146.32,45.0]
[1723564154204,38.1916,146.38,146.32,45.0]
[1723564154508,6.831,146.39,146.33,0.12549]
[1723564154680,20.0,146.38,146.33,0.25098]
[1723564155299,38.1907,146.4,146.33,0.25098]
[1723564155509,6.8307,146.4,146.33,0.25098]
[1723564155678,6.831,146.39,146.33,0.25098]
[1723564156614,6.8306,146.4,146.33,0.25098]
[1723564156794,6.8311,146.39,146.33,0.25098]
[1723564156993,6.832,146.37,146.31,15.8748]
[1723564157190,6.8316,146.38,146.31,15.8748]
[1723564157905,6.8311,146.39,146.31,15.8748]
[1723564158211,26.88815527,146.43,146.31,15.8748]
[1723564158212,31.36,146.42,146.31,15.8748]
[1723564158386,26.8304,146.41,146.32,45.0]
[1723564158583,31.36,146.4,146.33,0.25098]
[1723564158784,31.36,146.38,146.31,15.8748]
[1723564159100,6.8332,146.35,146.31,15.8748]
[1723564159810,31.36,146.38,146.31,15.8748]
[1723564160004,20.0,146.39,146.31,15.8748]
[1723564160309,38.191,146.4,146.32,45.25098]
[1723564160497,31.36,146.4,146.32,45.25098]
[1723564161014,6.8302,146.41,146.32,45.25098]
[1723564161215,6.8307,146.4,146.32,45.25098]
[1723564162413,31.36,146.4,146.32,45.25098]
[1723564162711,6.8317,146.38,146.32,45.25098]
[1723564162912,6.8314,146.39,146.32,45.25098]
[1723564163291,38.1907,146.4,146.32,45.25098]
[1723564163494,6.8312,146.39,146.32,45.25098]
[1723564164912,6.8315,146.38,146.32,45.25098]
[1723564166007,8.49293536,146.37,146.32,45.25098]
[1723564166206,6.8324,146.36,146.31,15.8748]
[1723564167096,6.8321,146.37,146.31,15.8748]
[1723564167312,6.8325,146.36,146.31,15.8748]
[1723564167509,1.66063536,146.35,146.31,15.8748]
[1723564167711,6.8325,146.36,146.31,15.8748]
[1723564168594,39.28,146.37,146.31,15.8748]
[1723564168788,39.28,146.35,146.29,6.5003]
[1723564169010,6.8343,146.32,146.28,15.1322]
[1723564169292,6.8339,146.33,146.28,15.1322]
[1723564170014,6.8335,146.34,146.28,15.1322]
[1723564170404,6.8329,146.35,146.28,15.1322]
[1723564170711,6.8326,146.36,146.29,45.25098]
[1723564171210,26.8329,146.35,146.29,45.25098]
[1723564171915,20.0,146.35,146.29,45.0]
[1723564172115,6.8341,146.33,146.29,45.0]
[1723564172417,6.8335,146.34,146.29,45.0]
[1723564173522,46.1131,146.35,146.29,45.0]
[1723564173708,20.0,146.36,146.29,45.0]
[1723564173911,6.8329,146.35,146.3,0.25098]
[1723564174096,20.0,146.36,146.29,45.0]
[1723564174295,6.8334,146.34,146.29,45.0]
[1723564175203,20.0,146.36,146.3,0.12549]
[1723564175402,20.0,146.36,146.3,0.25098]
[1723564175716,6.8325,146.36,146.3,0.25098]
[1723564175924,39.28,146.37,146.29,45.0]
[1723564177094,39.28,146.37,146.3,0.25098]
[1723564177298,46.41460094,146.37,146.3,0.25098]
[1723564177499,6.8329,146.35,146.3,0.25098]
[1723564177824,6.8329,146.35,146.29,45.0]
[1723564179116,46.41460094,146.37,146.3,0.12549]
[1723564179319,39.28,146.37,146.3,0.12549]
[1723564179517,6.8308,146.4,146.3,0.12549]
[1723564179721,7.13485349,146.39,146.32,16.2045]
[1723564179918,6.8304,146.41,146.33,45.25098]
[1723564180302,71.8426,146.45,146.33,45.25098]
[1723564180504,6.83,146.42,146.33,45.25098]
[1723564181122,6.8293,146.43,146.33,45.25098]
[1723564181430,6.8293,146.43,146.34,0.12549]
[1723564183140,6.8293,146.43,146.35,6.1027]
[1723564183324,6.8293,146.43,146.36,45.25098]
[1723564184137,13.96495355,146.44,146.36,45.25098]
[1723564184323,6.8289,146.44,146.37,16.1518]
[1723564184525,6.8289,146.44,146.38,45.25098]
[1723564186009,6.8292,146.43,146.38,45.25098]
[1723564186209,31.4,146.45,146.38,45.25098]
[1723564186515,6.8304,146.41,146.38,45.0]
[1723564187430,6.8292,146.43,146.38,45.0]
[1723564187631,6.8285,146.45,146.38,45.0]
[1723564187950,6.8287,146.44,146.39,0.25098]
[1723564188311,7.13710439,146.46,146.39,0.25098]
[1723564188515,6.8279,146.46,146.39,0.25098]
[1723564189848,6.8283,146.45,146.39,0.25098]
[1723564190232,6.8287,146.44,146.39,0.25098]
[1723564190753,6.8284,146.45,146.39,0.25098]
[1723564191437,6.8274,146.47,146.39,0.25098]
[1723564192338,6.8278,146.46,146.39,0.25098]
[1723564193946,6.8285,146.45,146.39,0.25098]
[1723564194155,6.83,146.42,146.37,16.1518]
[1723564194342,8.49073536,146.41,146.37,16.1518]
[1723564194655,31.4,146.43,146.37,16.1518]
[1723564195454,31.4,146.45,146.37,16.1518]
[1723564195653,6.8293,146.43,146.38,0.12549]
[1723564195863,6.8293,146.43,146.38,45.25098]
[1723564196542,6.8301,146.41,146.38,45.0]
[1723564197566,6.8298,146.42,146.38,45.0]
[1723564199164,31.4,146.43,146.38,45.0]
[1723564199369,26.829,146.44,146.39,0.12549]
[1723564199668,20.0,146.44,146.38,44.83862203]
[1723564200470,6.8292,146.43,146.38,44.83862203]
[1723564200762,20.0,146.44,146.38,44.83862203]
[1723564200997,7.14243351,146.45,146.38,44.83862203]
[1723564201151,6.8269,146.48,146.39,6.49849]
[1723564201462,6.8261,146.5,146.4,15.1312]
[1723564201664,38.54008075,146.52,146.41,45.25098]
[1723564201845,38.2253,146.52,146.42,6.3443]
[1723564202358,6.8257,146.51,146.43,45.25098]
[1723564202744,6.8259,146.5,146.43,45.25098]
[1723564204461,8.48633536,146.51,146.43,45.25098]
[1723564204664,6.8257,146.51,146.43,45.25098]
[1723564204875,6.8248,146.53,146.44,15.1825]
[1723564205057,1.66063536,146.52,146.45,45.25098]
[1723564205258,7.13957231,146.54,146.46,6.5117]
[1723564205464,6.8237,146.55,146.47,45.25098]
[1723564205869,6.8241,146.54,146.47,45.25098]
[1723564207359,6.8236,146.55,146.47,45.25098]
[1723564207753,31.4,146.55,146.47,45.25098]
[1723564208157,6.8242,146.54,146.47,45.25098]
[1723564208748,31.4,146.55,146.46,6.5117]
[1723564208958,1.66063536,146.54,146.46,6.5117]
[1723564209673,31.4,146.53,146.46,6.5117]
[1723564209976,6.8258,146.51,146.46,6.5117]
[1723564210178,1.66063536,146.5,146.47,45.0]
[1723564211376,8.48613536,146.51,146.47,45.0]
[1723564212253,1.66063536,146.51,146.47,45.0]
[1723564212456,21.51116335,146.58,146.47,45.0]
[1723564212664,6.8245,146.54,146.48,0.25098]
[1723564212866,21.66063536,146.53,146.48,0.25098]
[1723564213381,20.0,146.53,146.48,0.25098]
[1723564213584,6.8245,146.54,146.48,0.25098]
[1723564213959,6.8237,146.55,146.48,0.25098]
[1723564214673,6.8237,146.55,146.49,16.5726]
[1723564214870,6.8237,146.55,146.5,45.0]
[1723564215283,31.4,146.56,146.5,45.0]
[1723564215457,31.4,146.52,146.49,16.5726]
[1723564215657,6.8258,146.51,146.49,16.5726]
[1723564215884,6.8251,146.52,146.49,16.5726]
[1723564216459,6.8246,146.53,146.49,16.5726]
[1723564216660,38.2241,146.54,146.49,16.5726]
[1723564216861,6.8245,146.53,146.49,16.5726]
[1723564217061,6.8245,146.53,146.5,45.0]
[1723564217790,6.8241,146.54,146.5,45.0]
[1723564218385,31.4,146.56,146.5,45.0]
[1723564218569,6.8257,146.51,146.49,16.5726]
[1723564218762,1.66063536,146.5,146.46,6.5117]
[1723564218964,8.48653536,146.5,146.46,6.5117]
[1723564219164,6.8256,146.51,146.46,6.5117]
[1723564219683,1.66063536,146.5,146.46,6.5117]
[1723564219984,6.8256,146.51,146.46,6.5117]
[1723564220163,1.66063536,146.5,146.47,45.0]
[1723564220564,38.2251,146.52,146.47,45.0]
[1723564221088,31.4,146.52,146.47,45.0]
[1723564221292,1.66063536,146.51,146.47,45.0]
[1723564221588,38.2251,146.52,146.47,45.0]
[1723564222092,6.8262,146.5,146.47,45.0]
[1723564222391,1.66063536,146.49,146.47,45.0]
[1723564222573,8.48723536,146.49,146.47,45.0]
[1723564222778,1.66063536,146.48,146.47,45.0]
[1723564222975,1.66063536,146.48,146.46,45.0]
[1723564223361,1.66063536,146.48,146.45,15.7243]
[1723564223667,8.48753536,146.48,146.45,15.7243]
[1723564224592,1.66063536,146.47,146.42,6.5126]
[1723564224762,31.4,146.46,146.41,15.5908]
[1723564224964,37.5452,146.5,146.38,6.5126]
[1723564224965,31.4,146.44,146.38,6.5126]
[1723564225162,31.4,146.42,146.37,16.504]
[1723564225362,1.66063536,146.41,146.34,23.1229]
[1723564225689,31.4,146.4,146.34,23.1229]
[1723564226012,1.66063536,146.39,146.34,23.1229]
[1723564226197,31.4,146.38,146.28,22.8381]
[1723564226372,1.66063536,146.37,146.28,22.8381]
[1723564226565,31.4,146.36,146.28,22.8381]
[1723564226764,6.834,146.33,146.28,22.8381]
[1723564226987,1.66063536,146.32,146.28,6.517]
[1723564227177,31.4,146.34,146.28,6.517]
[1723564227408,20.0,146.35,146.28,6.517]
[1723564227409,26.833,146.35,146.28,6.517]
[1723564228717,1.66063536,146.34,146.28,6.517]
[1723564229027,1.66063536,146.34,146.29,45.0]
[1723564229596,26.833,146.35,146.29,45.0]
[1723564229914,26.833,146.35,146.3,0.12549]
[1723564229915,20.0,146.35,146.3,0.12549]
[1723564230122,21.66063536,146.35,146.3,0.25098]
[1723564230301,6.8307,146.4,146.3,0.25098]
[1723564230485,28.49173536,146.39,146.3,0.25098]
[1723564230819,1.66063536,146.39,146.3,0.25098]
[1723564231010,6.8306,146.4,146.3,0.25098]
[1723564231216,52.552,146.43,146.3,0.25098]
[1723564231387,6.8298,146.42,146.3,0.25098]
[1723564231593,6.8298,146.42,146.31,54.6923]
[1723564231796,6.8309,146.4,146.32,51.79008]
[1723564232087,1.66063536,146.39,146.32,51.79008]
[1723564232390,6.8316,146.38,146.32,51.79008]
[1723564232589,39.3,146.41,146.32,51.79008]
[1723564232590,6.8311,146.39,146.32,51.79008]
[1723564232813,46.1302,146.41,146.32,51.79008]
[1723564233120,6.8295,146.43,146.32,51.79008]
[1723564233303,6.8306,146.4,146.32,51.79008]
[1723564233816,6.8297,146.42,146.32,51.79008]
[1723564234507,6.8298,146.42,146.32,51.79008]
[1723564234708,39.3,146.43,146.32,51.79008]
[1723564234900,6.8311,146.39,146.32,51.79008]
[1723564235525,20.0,146.42,146.32,51.79008]
[1723564236134,26.8298,146.42,146.32,51.79008]
[1723564236633,6.8302,146.41,146.32,51.79008]
[1723564237327,20.0,146.42,146.32,51.79008]
[1723564237532,6.8312,146.39,146.32,51.79008]
[1723564237911,6.8315,146.38,146.32,51.79008]
[1723564238103,6.8312,146.39,146.32,51.79008]
[1723564238416,46.4439299,146.41,146.32,6.5391]
[1723564238623,40.96063536,146.39,146.32,6.5391]
[1723564238808,39.3,146.37,146.31,15.3923]
[1723564239139,1.66063536,146.36,146.31,15.3923]
[1723564239325,46.1321,146.37,146.31,15.3923]
[1723564239637,1.66063536,146.36,146.31,15.3923]
[1723564239826,46.1321,146.37,146.31,15.3923]
[1723564240130,20.0,146.4,146.31,15.3923]
[1723564240306,20.0,146.4,146.32,0.12549]
[1723564240633,26.8309,146.4,146.32,0.12549]
[1723564241031,6.8311,146.39,146.32,0.12549]
[1723564241208,1.66063536,146.38,146.32,45.25098]
[1723564242229,1.66063536,146.39,146.32,45.25098]
[1723564242526,8.49163536,146.39,146.32,45.25098]
[1723564243324,20.0,146.4,146.32,45.25098]
[1723564243514,20.0,146.41,146.32,45.25098]
[1723564244137,6.8309,146.4,146.32,45.25098]
[1723564244517,6.831,146.39,146.32,45.25098]
[1723564244921,1.66063536,146.38,146.32,45.25098]
[1723564245129,6.831,146.39,146.32,45.25098]
[1723564245545,1.66063536,146.38,146.31,15.3923]
[1723564245706,37.0758,146.41,146.31,15.3923]
[1723564245906,6.8323,146.37,146.31,15.3923]
[1723564246134,6.8316,146.38,146.31,15.3923]
[1723564246838,6.8316,146.38,146.32,0.12549]
[1723564247331,20.0,146.41,146.32,45.25098]
[1723564247710,6.8313,146.39,146.32,45.25098]
[1723564247909,6.8316,146.38,146.32,45.25098]
[1723564248329,8.49173536,146.39,146.32,45.25098]
[1723564248711,6.8315,146.38,146.32,45.25098]
[1723564248917,8.49213536,146.38,146.32,45.25098]
[1723564249409,6.8315,146.38,146.32,45.25098]
[1723564251321,8.49213536,146.38,146.32,45.25098]
[1723564251549,6.8315,146.38,146.32,45.25098]
[1723564255637,20.0,146.41,146.32,45.25098]
[1723564255936,6.8306,146.4,146.33,6.286]
[1723564256133,26.8305,146.41,146.34,45.25098]
[1723564258039,20.0,146.41,146.34,45.25098]
[1723564258217,6.8295,146.43,146.35,16.1597]
[1723564258538,6.8285,146.45,146.37,6.0812]
[1723564258840,6.8285,146.45,146.38,45.25098]
[1723564260233,6.8288,146.44,146.38,45.25098]